fUST/lending_fUST_20250801
["ID","MTS","AMOUNT","RATE_DAILY","PERIOD"]
[376539206,1754011536383,-460.0,0.00024382,2]
[376539207,1754011536407,-460.0,0.00024382,2]
[376539208,1754011536430,-460.0,0.00024382,2]
[376539209,1754011536452,-460.0,0.00024382,2]
[376539210,1754011536475,-460.0,0.00024382,2]
[376539211,1754011536501,-460.0,0.00024382,2]
[376539212,1754011536526,-460.0,0.00024382,2]
[376539213,1754011536552,-460.0,0.00024382,2]
[376539214,1754011536579,-460.0,0.00024382,2]
[376539215,1754011536605,-460.0,0.00024382,2]
[376539216,1754011536632,-460.0,0.00024382,2]
[376539217,1754011536663,-460.0,0.00024382,2]
[376539218,1754011536706,-555.5,0.00024382,2]
[376539219,1754011536734,-460.0,0.00024587,2]
[376539220,1754011536759,-460.0,0.00024587,2]
[376539221,1754011536783,-424.37,0.00024656,2]
[376539222,1754011536806,-216.24,0.00024656,2]
[376539223,1754011536830,-460.0,0.00024861,2]
[376539224,1754011536854,-441.79,0.00024861,2]
[376539225,1754011536875,-299.01473573,0.00024899,2]
[376539226,1754011536906,-150.0,0.00025095,2]
[376539227,1754011536935,-460.0,0.00025135,2]
[376539228,1754011536961,-160.0,0.00025153,2]
[376539229,1754011536990,-460.0,0.00025409,2]
[376539230,1754011537018,-2000.00000099,0.000255,2]
[376539231,1754011537043,-206.0,0.0002556,2]
[376539232,1754011537070,-823.0,0.00025626,2]
[376539233,1754011537096,-460.0,0.00025683,2]
[376539234,1754011537120,-159.20699372,0.00025699,2]
[376539235,1754011537147,-460.0,0.00025818,2]
[376539236,1754011537172,-154.36734,0.00025905,20]
[376539237,1754011537198,-460.0,0.00025957,2]
[376539238,1754011537221,-3000.0,0.00026,10]
[376539239,1754011537243,-2000.0,0.00026,20]
[376539240,1754011537265,-206.0,0.0002603,2]
[376539241,1754011537288,-460.0,0.00026092,2]
[376539242,1754011537310,-168.0,0.0002612,2]
[376539243,1754011537337,-460.0,0.00026231,2]
[376539244,1754011537362,-200.0,0.00026263,15]
[376539245,1754011537387,-200.0,0.00026263,15]
[376539246,1754011537411,-200.0,0.00026263,15]
[376539247,1754011537435,-200.0,0.00026263,15]
[376539248,1754011537458,-200.0,0.00026263,15]
[376539249,1754011537483,-200.0,0.00026263,15]
[376539250,1754011537509,-200.0,0.00026263,15]
[376539251,1754011537536,-200.0,0.00026263,15]
[376539252,1754011537562,-200.0,0.00026263,15]
[376539253,1754011537591,-394.0,0.00026263,15]
[376539254,1754011537614,-180.17256127,0.00026299,2]
[376539255,1754011537638,-180.17256127,0.00026312,2]
[376539256,1754011537666,-180.17256127,0.00026326,2]
[376539257,1754011537692,-185.58995736,0.00026339,2]
[376539258,1754011537719,-2027.8316139,0.00026339,2]
[376539259,1754011537744,-180.17256127,0.00026339,2]
[376539260,1754011537770,-3995.53005249,0.00026339,2]
[376539261,1754011537798,-460.0,0.00026366,2]
[376539262,1754011537822,-500.0,0.00026373,2]
[376539263,1754011537846,-645.63,0.0002638,10]
[376539264,1754011537872,-357.78,0.0002638,3]
[376539265,1754011537899,-1231.17,0.0002638,10]
[376539266,1754011537924,-33990.32863361,0.0002639,2]
[376539267,1754011549083,-160.0,0.0002,3]
[376539268,1754011549106,-160.0,0.0002,3]
[376539269,1754011549128,-160.0,0.0002,3]
[376539270,1754011549155,-460.0,0.0002219,2]
[376539271,1754011549178,-460.0,0.00022395,2]
[376539272,1754011549202,-460.0,0.00022395,2]
[376539273,1754011549230,-460.0,0.00022464,2]
[376539274,1754011549254,-460.0,0.00022669,2]
[376539275,1754011549281,-460.0,0.00022738,2]
[376539276,1754011549302,-407.0,0.00022773,2]
[376539277,1754011549328,-460.0,0.00022943,2]
[376539278,1754011549353,-460.0,0.00023012,2]
[376539279,1754011549377,-460.0,0.00023286,2]
[376539280,1754011549400,-460.0,0.0002356,2]
[376539281,1754011549426,-198.58,0.00023834,2]
[376539282,1754011549448,-460.0,0.00024382,2]
[376539283,1754011549477,-460.0,0.00024656,2]
[376539284,1754011549502,-407.0,0.00025773,2]
[376539285,1754011549527,-460.0,0.00025818,2]
[376539286,1754011549552,-460.0,0.00026092,2]
[376539287,1754011549580,-460.0,0.00026366,2]
[376539288,1754011549605,-1025.97,0.0002638,10]
[376539289,1754011549631,-106789.08147639,0.0002639,2]
[376539290,1754011549657,-549.29010082,0.00026399,2]
[376539291,1754011549682,-460.0,0.00026399,2]
[376539292,1754011549707,-460.0,0.00026399,2]
[376539293,1754011549734,-460.0,0.00026399,2]
[376539294,1754011549776,-460.0,0.00026399,2]
[376539295,1754011549799,-460.0,0.00026399,2]
[376539296,1754011549823,-460.0,0.00026399,2]
[376539297,1754011549846,-460.0,0.00026399,2]
[376539298,1754011549868,-460.0,0.00026399,2]
[376539299,1754011549893,-460.0,0.00026399,2]
[376539300,1754011549920,-467.44,0.00026399,2]
[376539301,1754011549944,-460.0,0.00026399,2]
[376539302,1754011549969,-460.0,0.00026399,2]
[376539303,1754011549993,-460.0,0.00026399,2]
[376539304,1754011550016,-460.0,0.00026399,2]
[376539305,1754011550038,-460.0,0.00026399,2]
[376539306,1754011550061,-460.0,0.00026399,2]
[376539307,1754011550082,-460.0,0.00026399,2]
[376539308,1754011550104,-460.0,0.00026399,2]
[376539309,1754011550127,-460.0,0.00026399,2]
[376539310,1754011550148,-460.0,0.00026399,2]
[376539311,1754011550171,-460.0,0.00026399,2]
[376539312,1754011550191,-2039.55002785,0.000264,2]
[376539313,1754011550211,-500.0,0.00026426,2]
[376539314,1754011550232,-460.0,0.00026433,2]
[376539315,1754011550256,-210.21964142,0.00026433,2]
[376539316,1754011550280,-460.0,0.00026433,2]
[376539317,1754011550303,-460.0,0.00026433,2]
[376539318,1754011550327,-203.11648751,0.00026433,2]
[376539319,1754011550354,-460.0,0.00026433,2]
[376539320,1754011550377,-491.04038707,0.00026433,2]
[376539321,1754011550400,-460.0,0.00026433,2]
[376539322,1754011550428,-460.0,0.00026433,2]
[376539323,1754011550452,-460.0,0.00026433,2]
[376539324,1754011550475,-460.0,0.00026433,2]
[376539325,1754011550497,-460.0,0.00026433,2]
[376539326,1754011550519,-460.0,0.00026433,2]
[376539327,1754011550541,-460.0,0.00026433,2]
[376539328,1754011550562,-460.0,0.00026433,2]
[376539329,1754011550585,-460.0,0.00026433,2]
[376539330,1754011550607,-460.0,0.00026433,2]
[376539331,1754011550629,-460.0,0.00026433,2]
[376539332,1754011550765,-460.0,0.00026433,2]
[376539333,1754011550794,-460.0,0.00026433,2]
[376539334,1754011550816,-460.0,0.00026433,2]
[376539335,1754011550838,-460.0,0.00026433,2]
[376539336,1754011550860,-460.0,0.00026433,2]
[376539337,1754011550882,-460.0,0.00026433,2]
[376539338,1754011550906,-460.0,0.00026433,2]
[376539339,1754011550928,-460.0,0.00026433,2]
[376539340,1754011550951,-460.0,0.00026433,2]
[376539341,1754011550975,-460.0,0.00026433,2]
[376539342,1754011550998,-460.0,0.00026433,2]
[376539343,1754011551022,-460.0,0.00026433,2]
[376539344,1754011551047,-460.0,0.00026433,2]
[376539345,1754011551074,-460.0,0.00026433,2]
[376539346,1754011551099,-460.0,0.00026433,2]
[376539347,1754011551124,-494.69,0.00026433,2]
[376539348,1754011551149,-460.0,0.00026433,2]
[376539349,1754011551177,-460.0,0.00026433,2]
[376539350,1754011551203,-460.0,0.00026433,2]
[376539351,1754011551229,-228.70128859,0.00026433,2]
[376539352,1754011551252,-460.0,0.00026433,2]
[376539353,1754011551274,-151.0,0.00026434,20]
[376539354,1754011551296,-151.0,0.00026434,2]
[376539355,1754011551317,-500.0,0.00026434,7]
[376539356,1754011551343,-500.0,0.00026434,2]
[376539357,1754011551366,-202.8168749,0.00026434,7]
[376539358,1754011551389,-500.0,0.00026438,2]
[376539359,1754011551413,-158.734422,0.00026438,2]
[376539360,1754011551437,-500.0,0.00026438,2]
[376539361,1754011551462,-500.0,0.00026438,2]
[376539362,1754011551486,-500.0,0.00026438,2]
[376539363,1754011551511,-500.0,0.00026438,2]
[376539364,1754011551536,-500.0,0.00026438,2]
[376539365,1754011551558,-500.0,0.00026438,2]
[376539366,1754011551583,-500.0,0.00026438,2]
[376539367,1754011551607,-500.0,0.00026438,2]
[376539368,1754011551631,-500.0,0.00026438,2]
[376539369,1754011551659,-395.70760445,0.00026438,2]
[376539371,1754011626098,-460.0,0.00019178,2]
[376539372,1754011626121,-300.0,0.00022189,2]
[376539373,1754011626144,-460.0,0.0002219,2]
[376539374,1754011626165,-460.0,0.0002219,2]
[376539375,1754011626188,-460.0,0.0002219,2]
[376539376,1754011626211,-460.0,0.0002219,2]
[376539377,1754011626238,-460.0,0.0002219,2]
[376539378,1754011626261,-460.0,0.0002219,2]
[376539379,1754011626285,-460.0,0.0002219,2]
[376539380,1754011626310,-460.0,0.0002219,2]
[376539381,1754011626334,-460.0,0.00022395,2]
[376539382,1754011626376,-460.0,0.00022395,2]
[376539383,1754011626402,-460.0,0.00022395,2]
[376539384,1754011626431,-460.0,0.00022395,2]
[376539385,1754011626455,-460.0,0.00022395,2]
[376539386,1754011626485,-460.0,0.00022395,2]
[376539387,1754011626513,-460.0,0.00022395,2]
[376539388,1754011626539,-588.4,0.00022395,2]
[376539389,1754011626564,-460.0,0.00022395,2]
[376539390,1754011626589,-460.0,0.00022395,2]
[376539391,1754011626614,-460.0,0.00022395,2]
[376539392,1754011626639,-460.0,0.00022395,2]
[376539393,1754011626663,-460.0,0.00022395,2]
[376539394,1754011626687,-517.5,0.00022395,2]
[376539395,1754011626713,-460.0,0.00022395,2]
[376539396,1754011626742,-460.0,0.00022395,2]
[376539397,1754011626776,-460.0,0.00022395,2]
[376539398,1754011626801,-460.0,0.00022395,2]
[376539399,1754011626824,-460.0,0.00022395,2]
[376539400,1754011626849,-460.0,0.00022395,2]
[376539401,1754011626872,-460.0,0.00022395,2]
[376539402,1754011626896,-460.0,0.00022464,2]
[376539403,1754011626920,-460.0,0.00022464,2]
[376539404,1754011627111,-242.08,0.00022669,2]
[376539405,1754011627136,-460.0,0.00022669,2]
[376539406,1754011627161,-460.0,0.00022669,2]
[376539407,1754011627183,-523.01,0.00022669,2]
[376539408,1754011627207,-460.0,0.00022738,2]
[376539409,1754011627237,-597.96,0.00022738,2]
[376539410,1754011627259,-424.9,0.00022943,2]
[376539411,1754011627285,-460.0,0.00022943,2]
[376539412,1754011627312,-460.0,0.00023012,2]
[376539413,1754011627340,-292.52,0.00023217,2]
[376539414,1754011627371,-460.0,0.00023286,2]
[376539415,1754011627400,-344.0,0.0002356,2]
[376539416,1754011627423,-420.0,0.00024107,2]
[376539417,1754011627448,-267.23006435,0.00024333,2]
[376539418,1754011627475,-165.49,0.00024382,2]
[376539419,1754011627497,-462.93964972,0.00024382,2]
[376539420,1754011627520,-1000.0,0.00025439,2]
[376539421,1754011627547,-460.0,0.00025818,2]
[376539422,1754011627574,-460.0,0.00026092,2]
[376539423,1754011627597,-587.0,0.00026192,2]
[376539424,1754011627620,-7686.87872373,0.00026239,2]
[376539425,1754011627648,-460.0,0.00026366,2]
[376539426,1754011627671,-854.98,0.00026429,10]
[376539427,1754011627694,-412.31,0.00026429,10]
[376539428,1754011627715,-643.76,0.00026429,10]
[376539429,1754011627739,-460.0,0.00026433,2]
[376539430,1754011627762,-460.0,0.00026433,2]
[376539431,1754011627788,-104.29239555,0.00026438,2]
[376539432,1754011627812,-500.0,0.00026438,2]
[376539433,1754011627837,-500.0,0.00026438,2]
[376539434,1754011627864,-500.0,0.00026438,2]
[376539435,1754011627889,-401.58730061,0.00026438,2]
[376539436,1754011627914,-500.0,0.00026438,2]
[376539437,1754011627938,-500.0,0.00026438,2]
[376539438,1754011627963,-500.0,0.00026438,2]
[376539439,1754011627991,-500.0,0.00026438,2]
[376539440,1754011628016,-500.0,0.00026438,2]
[376539441,1754011628040,-500.0,0.00026438,2]
[376539442,1754011628063,-600.0,0.00026438,2]
[376539443,1754011628084,-500.0,0.00026438,2]
[376539444,1754011628107,-499.48966902,0.00026439,2]
[376539445,1754011628128,-312.16666667,0.00026439,10]
[376539446,1754011628150,-312.16666667,0.00026439,30]
[376539447,1754011628172,-526.848153,0.00026439,10]
[376539448,1754011628192,-526.848153,0.00026439,30]
[376539449,1754011628211,-160.0,0.00026439,7]
[376539450,1754011628239,-500.0,0.00026439,10]
[376539451,1754011628260,-564.59403786,0.00026473,2]
[376539452,1754011628282,-78100.51124282,0.0002649,2]
[376539453,1754011628334,-460.0,0.00022395,2]
[376539454,1754011628365,-500.0,0.00026433,2]
[376539455,1754011628389,-500.0,0.00026433,2]
[376539456,1754011628424,-62678.89886718,0.0002649,2]
[376539457,1754011628447,-151.0,0.00026494,2]
[376539458,1754011628469,-151.0,0.00026494,15]
[376539459,1754011628494,-5755.35789738,0.000265,7]
[376539460,1754011628517,-739.78,0.000265,7]
[376539461,1754011628542,-29904.32,0.000265,2]
[376539462,1754011628565,-2000.0,0.000265,2]
[376539463,1754011628587,-206.0,0.000265,2]
[376539464,1754011628608,-1988.58,0.000265,7]
[376539465,1754011628631,-2000.0,0.00026508,60]
[376539466,1754011628653,-27003.1847327,0.00026515,2]
[376539467,1754011628704,-460.0,0.0002219,2]
[376539468,1754011628732,-244.40463274,0.00022395,2]
[376539469,1754011628760,-350.0,0.00026433,2]
[376539470,1754011628792,-19838.24565926,0.00026515,2]
[376539473,1754011721074,208.31061333,0.000294,120]
[376539477,1754011734463,1444.0,0.0002904,120]
[376539478,1754011735498,243.977364,0.00013699,2]
[376539480,1754011796429,400.0,0.0002877,120]
[376539483,1754011810219,731.0,0.000274,120]
[376539484,1754011819116,152.34514392,0.000274,120]
[376539541,1754011834367,-2363.83666424,0.00018986,2]
[376539542,1754011834379,-879.65342751,0.00018986,2]
[376539598,1754011838507,-570.46176742,0.00018986,2]
[376539600,1754011838519,-525.62621275,0.00018986,2]
[376539606,1754011838765,-660.42192808,0.00018986,2]
[376539607,1754011838775,-460.0,0.00019178,2]
[376539608,1754011838791,-460.0,0.00019178,2]
[376539609,1754011838804,-243.977364,0.00020187,2]
[376539610,1754011838817,-405.84,0.000203,2]
[376539611,1754011838829,-231.48161788,0.00020541,2]
[376539612,1754011838841,-526.848153,0.00020541,2]
[376539613,1754011838853,-460.682337,0.00020541,2]
[376539614,1754011838864,-239.47774964,0.0002199,2]
[376539615,1754011838874,-300.0,0.00021999,2]
[376539616,1754011838884,-460.0,0.00021999,2]
[376539617,1754011838895,-460.0,0.00021999,2]
[376539618,1754011838906,-137561.84962701,0.00022,3]
[376539619,1754011838920,-161.0,0.00022,2]
[376539620,1754011838930,-160.0,0.00022178,2]
[376539621,1754011838941,-460.0,0.0002219,2]
[376539622,1754011838952,-460.0,0.0002219,2]
[376539623,1754011838963,-460.0,0.0002219,2]
[376539624,1754011838975,-460.0,0.0002219,2]
[376539625,1754011838987,-460.0,0.0002219,2]
[376539626,1754011838999,-460.0,0.0002219,2]
[376539627,1754011839011,-460.0,0.0002219,2]
[376539628,1754011839024,-460.0,0.0002219,2]
[376539629,1754011839036,-460.0,0.0002219,2]
[376539630,1754011839048,-460.0,0.0002219,2]
[376539631,1754011839060,-460.0,0.0002219,2]
[376539632,1754011839071,-590.86,0.0002219,2]
[376539633,1754011839084,-460.0,0.0002219,2]
[376539634,1754011839096,-460.0,0.0002219,2]
[376539635,1754011839110,-460.0,0.0002219,2]
[376539636,1754011839121,-460.0,0.0002219,2]
[376539637,1754011839133,-460.0,0.00022273,2]
[376539638,1754011839144,-460.0,0.00022273,2]
[376539639,1754011839156,-460.0,0.00022395,2]
[376539640,1754011839168,-460.0,0.00022395,2]
[376539641,1754011839180,-460.0,0.00022395,2]
[376539642,1754011839193,-460.0,0.00022395,2]
[376539643,1754011839205,-460.0,0.00022395,2]
[376539644,1754011839216,-460.0,0.00022395,2]
[376539645,1754011839228,-460.0,0.00022395,2]
[376539646,1754011839240,-460.0,0.00022395,2]
[376539647,1754011839251,-460.0,0.00022395,2]
[376539648,1754011839264,-460.0,0.00022395,2]
[376539649,1754011839275,-460.0,0.00022395,2]
[376539650,1754011839286,-460.0,0.00022395,2]
[376539651,1754011839296,-460.0,0.00022395,2]
[376539652,1754011839307,-460.0,0.00022395,2]
[376539653,1754011839318,-460.0,0.00022395,2]
[376539654,1754011839328,-460.0,0.00022395,2]
[376539655,1754011839338,-460.0,0.00022395,2]
[376539656,1754011839348,-460.0,0.00022395,2]
[376539657,1754011839358,-460.0,0.00022395,2]
[376539658,1754011839369,-460.0,0.00022395,2]
[376539659,1754011839380,-460.87917909,0.00022395,2]
[376539660,1754011839390,-460.0,0.00022395,2]
[376539661,1754011839401,-460.0,0.00022395,2]
[376539662,1754011839414,-460.0,0.00022395,2]
[376539663,1754011839429,-312.19149597,0.00022395,2]
[376539664,1754011839440,-460.0,0.00022395,2]
[376539665,1754011839452,-461.64889496,0.00022395,2]
[376539666,1754011839464,-460.0,0.00022395,2]
[376539667,1754011839477,-460.0,0.00022395,2]
[376539668,1754011839489,-460.0,0.00022395,2]
[376539669,1754011839500,-460.0,0.00022395,2]
[376539670,1754011839511,-460.0,0.00022464,2]
[376539671,1754011839522,-460.0,0.00022464,2]
[376539672,1754011839534,-477.7,0.00022464,2]
[376539673,1754011839545,-460.0,0.00022464,2]
[376539674,1754011839557,-460.0,0.00022464,2]
[376539675,1754011839568,-460.0,0.00022464,2]
[376539676,1754011839579,-426.75,0.00022464,2]
[376539677,1754011839592,-590.86,0.00022464,2]
[376539678,1754011839603,-460.0,0.00022464,2]
[376539679,1754011839613,-460.0,0.00022464,2]
[376539680,1754011839623,-460.0,0.00022464,2]
[376539681,1754011839633,-460.0,0.00022464,2]
[376539682,1754011839643,-468.90383749,0.00022547,2]
[376539683,1754011839653,-469.32165832,0.00022547,2]
[376539684,1754011839664,-200.0,0.00022633,15]
[376539685,1754011839675,-200.0,0.00022633,15]
[376539686,1754011839685,-200.0,0.00022633,15]
[376539688,1754011839697,-200.0,0.00022633,15]
[376539689,1754011839710,-200.0,0.00022633,15]
[376539690,1754011839721,-460.0,0.00022669,2]
[376539691,1754011839733,-460.0,0.00022669,2]
[376539692,1754011839745,-460.0,0.00022669,2]
[376539693,1754011839757,-460.0,0.00022669,2]
[376539694,1754011839770,-520.0,0.00022669,2]
[376539695,1754011839782,-460.0,0.00022669,2]
[376539696,1754011839792,-460.0,0.00022669,2]
[376539697,1754011839803,-460.0,0.00022669,2]
[376539698,1754011839813,-460.0,0.00022669,2]
[376539699,1754011839825,-460.0,0.00022669,2]
[376539700,1754011839837,-460.0,0.00022669,2]
[376539701,1754011839849,-460.0,0.00022669,2]
[376539702,1754011839861,-460.0,0.00022669,2]
[376539703,1754011839876,-460.0,0.00022669,2]
[376539704,1754011839889,-460.0,0.00022669,2]
[376539705,1754011839902,-460.0,0.00022669,2]
[376539706,1754011839917,-462.04924198,0.00022669,2]
[376539707,1754011839930,-548.83629649,0.00022669,2]
[376539708,1754011839942,-460.0,0.00022669,2]
[376539709,1754011839952,-460.0,0.00022669,2]
[376539710,1754011839964,-460.0,0.00022669,2]
[376539711,1754011839975,-460.0,0.00022669,2]
[376539712,1754011839986,-500.0,0.00022679,2]
[376539713,1754011839996,-590.86,0.00022738,2]
[376539714,1754011840006,-460.0,0.00022738,2]
[376539715,1754011840017,-460.0,0.00022738,2]
[376539716,1754011840027,-460.0,0.00022738,2]
[376539717,1754011840038,-460.0,0.00022738,2]
[376539718,1754011840049,-500.0,0.00022755,2]
[376539719,1754011840060,-508.26918888,0.00022755,2]
[376539720,1754011840071,-160.0,0.0002276,2]
[376539721,1754011840082,-428.02,0.00022943,2]
[376539723,1754011840092,-460.0,0.00022943,2]
[376539724,1754011840102,-460.0,0.00022943,2]
[376539725,1754011840114,-460.0,0.00022943,2]
[376539726,1754011840124,-460.0,0.00022943,2]
[376539727,1754011840134,-471.54908496,0.00022943,2]
[376539729,1754011840144,-460.0,0.00022943,2]
[376539731,1754011840155,-460.0,0.00022943,2]
[376539733,1754011840167,-460.0,0.00022943,2]
[376539735,1754011840179,-460.0,0.00022943,2]
[376539737,1754011840190,-160.0,0.00023,2]
[376539739,1754011840201,-590.86,0.00023012,2]
[376539741,1754011840212,-460.0,0.00023012,2]
[376539742,1754011840224,-460.0,0.00023012,2]
[376539743,1754011840236,-460.0,0.00023012,2]
[376539744,1754011840246,-161.0,0.00023014,7]
[376539745,1754011840257,-500.0,0.0002306,2]
[376539746,1754011840267,-500.0,0.0002306,2]
[376539747,1754011840278,-500.0,0.0002306,2]
[376539748,1754011840288,-500.0,0.0002306,2]
[376539749,1754011840298,-473.53574612,0.00023216,2]
[376539750,1754011840310,-525.80715256,0.00023216,2]
[376539751,1754011840320,-396.87001794,0.00023216,2]
[376539752,1754011840330,-500.0,0.00023216,2]
[376539753,1754011840340,-500.0,0.00023216,2]
[376539754,1754011840350,-500.0,0.00023216,2]
[376539755,1754011840361,-500.0,0.00023216,2]
[376539756,1754011840371,-500.0,0.00023216,2]
[376539757,1754011840383,-500.0,0.00023216,2]
[376539758,1754011840394,-500.0,0.00023216,2]
[376539759,1754011840406,-500.0,0.00023216,2]
[376539760,1754011840419,-336.6655531,0.00023216,2]
[376539761,1754011840433,-500.0,0.00023216,2]
[376539763,1754011840443,-353.47510401,0.00023216,2]
[376539765,1754011840454,-500.0,0.00023216,2]
[376539767,1754011840467,-500.0,0.00023216,2]
[376539769,1754011840478,-500.0,0.00023216,2]
[376539786,1754011840638,-557.69236316,0.00023216,2]
[376539788,1754011840649,-446.38356915,0.00023216,2]
[376539790,1754011840658,-500.0,0.00023216,2]
[376539792,1754011840671,-500.0,0.00023216,2]
[376539794,1754011840681,-500.0,0.00023216,2]
[376539796,1754011840691,-500.0,0.00023216,2]
[376539798,1754011840700,-460.0,0.00023217,2]
[376539801,1754011840711,-460.0,0.00023217,2]
[376539803,1754011840721,-465.66939931,0.00023217,2]
[376539804,1754011840731,-460.0,0.00023217,2]
[376539807,1754011840742,-466.47300418,0.00023217,2]
[376539808,1754011840751,-460.0,0.00023217,2]
[376539810,1754011840760,-590.86,0.00023286,2]
[376539812,1754011840770,-460.0,0.00023286,2]
[376539814,1754011840780,-460.0,0.00023286,2]
[376539816,1754011840790,-460.0,0.00023286,2]
[376539818,1754011840800,-260.0,0.00023308,2]
[376539821,1754011840809,-460.0,0.00023491,2]
[376539822,1754011840819,-460.0,0.00023491,2]
[376539825,1754011840830,-460.0,0.00023491,2]
[376539827,1754011840840,-460.0,0.00023491,2]
[376539829,1754011840849,-590.86,0.0002356,2]
[376539831,1754011840860,-471.27328969,0.0002356,2]
[376539833,1754011840870,-311.28804029,0.0002356,2]
[376539835,1754011840879,-531.64564474,0.0002356,2]
[376539837,1754011840888,-638.7709251,0.00023692,2]
[376539839,1754011840897,-460.0,0.00023765,2]
[376539841,1754011840906,-460.0,0.00023765,2]
[376539842,1754011840920,-460.0,0.00023765,2]
[376539844,1754011840929,-476.55027969,0.00023765,2]
[376539846,1754011840939,-590.86,0.00023834,2]
[376539848,1754011840948,-360.0,0.00023856,2]
[376539850,1754011840957,-420.0,0.00023906,2]
[376539852,1754011840967,-460.0,0.00024039,2]
[376539854,1754011840976,-460.0,0.00024039,2]
[376539856,1754011840985,-205.59404185,0.00024039,2]
[376539858,1754011840994,-590.86,0.00024108,2]
[376539860,1754011841004,-161.0,0.00024164,7]
[376539862,1754011841013,-186.56,0.00024313,2]
[376539864,1754011841022,-460.0,0.00024313,2]
[376539866,1754011841031,-460.0,0.00024382,2]
[376539868,1754011841041,-460.0,0.00024382,2]
[376539870,1754011841050,-460.0,0.00024382,2]
[376539872,1754011841059,-460.0,0.00024382,2]
[376539874,1754011841069,-578.19,0.00024382,2]
[376539876,1754011841079,-460.0,0.00024382,2]
[376539878,1754011841090,-527.338015,0.00024382,2]
[376539880,1754011841100,-460.0,0.00024382,2]
[376539882,1754011841110,-460.0,0.00024382,2]
[376539884,1754011841122,-460.0,0.00024382,2]
[376539886,1754011841131,-460.0,0.00024382,2]
[376539888,1754011841141,-460.0,0.00024382,2]
[376539889,1754011841150,-590.86,0.00024382,2]
[376539890,1754011841161,-460.0,0.00024382,2]
[376539891,1754011841176,-460.0,0.00024382,2]
[376539892,1754011841185,-460.0,0.00024382,2]
[376539893,1754011841195,-460.0,0.00024382,2]
[376539894,1754011841206,-462.81621514,0.00024382,2]
[376539895,1754011841216,-463.90239403,0.00024382,2]
[376539896,1754011841226,-462.04541293,0.00024382,2]
[376539897,1754011841236,-386.95185772,0.00024404,2]
[376539898,1754011841246,-460.0,0.00024587,2]
[376539899,1754011841256,-529.02,0.00024656,2]
[376539900,1754011841266,-460.0,0.00024656,2]
[376539901,1754011841275,-186.7,0.00024656,2]
[376539902,1754011841284,-590.86,0.00024656,2]
[376539903,1754011841293,-460.0,0.00024656,2]
[376539904,1754011841302,-460.0,0.00024656,2]
[376539905,1754011841312,-460.0,0.00024656,2]
[376539906,1754011841322,-200.0,0.00024838,15]
[376539907,1754011841331,-200.0,0.00024838,15]
[376539908,1754011841340,-200.0,0.00024838,15]
[376539909,1754011841350,-200.0,0.00024838,15]
[376539910,1754011841359,-200.0,0.00024838,15]
[376539911,1754011841368,-200.0,0.00024838,15]